[Event "*** Titled Tuesday Blitz"]
[Site "Chess.com"]
[Date "2019.02.05"]
[Round "4"]
[White "Alex_Terzi"]
[Black "regular_legs"]
[Result "1-0"]
[WhiteElo "2494"]
[BlackElo "2482"]
[TimeControl "180+2"]
[EndTime "13:47:40 PST"]
[Termination "Alex_Terzi won by checkmate"]

1. e4 {[%clk 0:03:01.9]} 1... c6 {[%clk 0:03:00]} 2. d4 {[%clk 0:03:02.9]} 2...
d5 {[%clk 0:03:01.9]} 3. Nc3 {[%clk 0:03:04.4]} 3... dxe4 {[%clk 0:03:02.7]} 4.
Nxe4 {[%clk 0:03:06.3]} 4... Bf5 {[%clk 0:03:02]} 5. Ng3 {[%clk 0:03:07.2]} 5...
Bg6 {[%clk 0:03:02.8]} 6. h4 {[%clk 0:03:08.5]} 6... h6 {[%clk 0:03:03.7]} 7.
Nh3 {[%clk 0:03:09.6]} 7... e6 {[%clk 0:03:03.2]} 8. Nf4 {[%clk 0:03:10.4]} 8...
Bh7 {[%clk 0:03:04.7]} 9. Bc4 {[%clk 0:03:10.9]} 9... Nf6 {[%clk 0:03:02.9]} 10.
Nfh5 {[%clk 0:03:11]} 10... Nbd7 {[%clk 0:02:54.4]} 11. c3 {[%clk 0:03:10]}
11... Nxh5 {[%clk 0:02:49.6]} 12. Nxh5 {[%clk 0:03:11.9]} 12... Nf6 {[%clk
0:02:50.9]} 13. Bf4 {[%clk 0:03:11.6]} 13... Bg6 {[%clk 0:02:44.3]} 14. Nxf6+
{[%clk 0:03:04.4]} 14... Qxf6 {[%clk 0:02:46.2]} 15. Be5 {[%clk 0:03:05.2]}
15... Qd8 {[%clk 0:02:38.9]} 16. Qf3 {[%clk 0:02:58.5]} 16... Rg8 {[%clk
0:02:17.7]} 17. O-O-O {[%clk 0:02:44.7]} 17... Bd6 {[%clk 0:02:18.5]} 18. Rhe1
{[%clk 0:02:34.8]} 18... Bxe5 {[%clk 0:02:06.1]} 19. dxe5 {[%clk 0:02:33.1]}
19... Qxh4 {[%clk 0:02:06.3]} 20. Rd4 {[%clk 0:02:33.8]} 20... Qg5+ {[%clk
0:02:04.8]} 21. Re3 {[%clk 0:02:12.5]} 21... Rd8 {[%clk 0:01:42.7]} 22. Qd1
{[%clk 0:01:46.4]} 22... Rxd4 {[%clk 0:01:15]} 23. Qxd4 {[%clk 0:01:48.3]} 23...
Qxg2 {[%clk 0:00:54.1]} 24. Qxa7 {[%clk 0:01:48.4]} 24... Qg1+ {[%clk
0:00:54.4]} 25. Kd2 {[%clk 0:01:49.1]} 25... Qxf2+ {[%clk 0:00:39.6]} 26. Be2
{[%clk 0:01:49.9]} 26... Qf4 {[%clk 0:00:21.1]} 27. Qb8+ {[%clk 0:01:47.1]}
27... Ke7 {[%clk 0:00:21.9]} 28. Qxb7+ {[%clk 0:01:47.4]} 28... Kf8 {[%clk
0:00:21.9]} 29. Qc8+ {[%clk 0:01:46.7]} 29... Ke7 {[%clk 0:00:22.9]} 30. Qc7+
{[%clk 0:01:48]} 30... Kf8 {[%clk 0:00:24.1]} 31. Qd8# {[%clk 0:01:48.6]} 1-0

[Event "*** Titled Tuesday Blitz"]
[Site "Chess.com"]
[Date "2019.02.05"]
[Round "4"]
[White "cherryandmint"]
[Black "Frolik67"]
[Result "1-0"]
[WhiteElo "2625"]
[BlackElo "2532"]
[TimeControl "180+2"]
[EndTime "13:47:45 PST"]
[Termination "cherryandmint won by resignation"]

1. e4 {[%clk 0:03:01.9]} 1... e6 {[%clk 0:02:57.4]} 2. d4 {[%clk 0:03:02.7]}
2... d5 {[%clk 0:02:58.2]} 3. e5 {[%clk 0:03:04.6]} 3... c5 {[%clk 0:02:58.1]}
4. c3 {[%clk 0:03:06.5]} 4... Nc6 {[%clk 0:02:57.9]} 5. Nf3 {[%clk 0:03:07.4]}
5... Bd7 {[%clk 0:02:58.8]} 6. Be2 {[%clk 0:03:07.9]} 6... Rc8 {[%clk
0:02:56.2]} 7. O-O {[%clk 0:03:08.3]} 7... cxd4 {[%clk 0:02:55.9]} 8. cxd4
{[%clk 0:03:09.4]} 8... Nge7 {[%clk 0:02:57]} 9. Nc3 {[%clk 0:03:09.9]} 9... a6
{[%clk 0:02:57]} 10. a3 {[%clk 0:03:10.8]} 10... Nf5 {[%clk 0:02:57.5]} 11. Kh1
{[%clk 0:02:54.7]} 11... Qb6 {[%clk 0:02:55.3]} 12. Na4 {[%clk 0:02:43.7]} 12...
Qa7 {[%clk 0:02:51]} 13. Be3 {[%clk 0:02:34.9]} 13... h5 {[%clk 0:02:44.8]} 14.
b4 {[%clk 0:02:31.4]} 14... Be7 {[%clk 0:02:41.7]} 15. Nc5 {[%clk 0:02:31.6]}
15... g6 {[%clk 0:02:17.4]} 16. Bd3 {[%clk 0:02:28.9]} 16... Rc7 {[%clk
0:01:58.6]} 17. Rc1 {[%clk 0:02:24.4]} 17... Bc8 {[%clk 0:01:54.2]} 18. Qe2
{[%clk 0:02:17.3]} 18... h4 {[%clk 0:01:29.8]} 19. Rc2 {[%clk 0:02:06.2]} 19...
O-O {[%clk 0:00:46.6]} 20. Rfc1 {[%clk 0:01:57.5]} 20... Qb6 {[%clk 0:00:36.7]}
21. Qd2 {[%clk 0:01:41]} 21... Rd8 {[%clk 0:00:31.1]} 22. Bxf5 {[%clk
0:01:38.5]} 22... exf5 {[%clk 0:00:31.5]} 23. Bg5 {[%clk 0:01:39.1]} 23... Be6
{[%clk 0:00:29.7]} 24. Bxe7 {[%clk 0:01:36.9]} 24... Nxe7 {[%clk 0:00:31.6]} 25.
Qh6 {[%clk 0:01:30.9]} 25... f4 {[%clk 0:00:24.1]} 26. Ng5 {[%clk 0:01:28.6]}
26... Nf5 {[%clk 0:00:24.4]} 27. Qh7+ {[%clk 0:01:28.6]} 27... Kf8 {[%clk
0:00:25.7]} 28. Ncxe6+ {[%clk 0:01:26.9]} 1-0

[Event "*** Titled Tuesday Blitz"]
[Site "Chess.com"]
[Date "2019.02.05"]
[Round "4"]
[White "WPWPWP-2015"]
[Black "Jenia84"]
[Result "1-0"]
[WhiteElo "2314"]
[BlackElo "2202"]
[TimeControl "180+2"]
[EndTime "13:47:50 PST"]
[Termination "WPWPWP-2015 won by resignation"]

1. e4 {[%clk 0:03:01.9]} 1... c5 {[%clk 0:02:59.2]} 2. Nf3 {[%clk 0:03:01.7]}
2... d6 {[%clk 0:02:55.9]} 3. d4 {[%clk 0:02:56.8]} 3... cxd4 {[%clk 0:02:53]}
4. Nxd4 {[%clk 0:02:57.8]} 4... Nf6 {[%clk 0:02:53.7]} 5. Nc3 {[%clk 0:02:58.4]}
5... a6 {[%clk 0:02:54.6]} 6. h3 {[%clk 0:02:59]} 6... e5 {[%clk 0:02:54.3]} 7.
Nde2 {[%clk 0:03:00]} 7... h5 {[%clk 0:02:54.4]} 8. Nd5 {[%clk 0:02:55.3]} 8...
Nxd5 {[%clk 0:02:53.2]} 9. Qxd5 {[%clk 0:02:55.1]} 9... Nc6 {[%clk 0:02:53.1]}
10. Be3 {[%clk 0:02:48.1]} 10... Be6 {[%clk 0:02:52.9]} 11. Qd2 {[%clk
0:02:47.4]} 11... d5 {[%clk 0:02:53.4]} 12. exd5 {[%clk 0:02:46.2]} 12... Qxd5
{[%clk 0:02:53.6]} 13. Qxd5 {[%clk 0:02:46.1]} 13... Bxd5 {[%clk 0:02:55]} 14.
Nc3 {[%clk 0:02:46.6]} 14... Be6 {[%clk 0:02:55.4]} 15. O-O-O {[%clk 0:02:46.3]}
15... Be7 {[%clk 0:02:26.1]} 16. Nd5 {[%clk 0:02:43.4]} 16... Bd8 {[%clk
0:02:20.6]} 17. Nb6 {[%clk 0:02:36.8]} 17... Rb8 {[%clk 0:02:18]} 18. Be2 {[%clk
0:02:33.5]} 18... O-O {[%clk 0:02:12.5]} 19. Bxh5 {[%clk 0:02:31.9]} 19... f5
{[%clk 0:02:13.4]} 20. Nd7 {[%clk 0:02:26.6]} 20... Bxd7 {[%clk 0:02:11.8]} 21.
Rxd7 {[%clk 0:02:27.1]} 21... f4 {[%clk 0:02:11.7]} 22. Bc5 {[%clk 0:02:26.4]}
22... Rf6 {[%clk 0:02:11.3]} 23. Bf3 {[%clk 0:02:22.9]} 23... Rc8 {[%clk
0:02:09.3]} 24. Rhd1 {[%clk 0:02:08.3]} 24... Ba5 {[%clk 0:02:04.8]} 25. Rxb7
{[%clk 0:01:50]} 25... Nd8 {[%clk 0:01:52.2]} 26. Be7 {[%clk 0:01:50.7]} 26...
Nxb7 {[%clk 0:01:30.1]} 27. Bxf6 {[%clk 0:01:50.3]} 27... gxf6 {[%clk
0:01:29.9]} 28. Bxb7 {[%clk 0:01:50.4]} 28... Rd8 {[%clk 0:01:29.2]} 29. f3
{[%clk 0:01:36.7]} 29... Rxd1+ {[%clk 0:01:22.7]} 30. Kxd1 {[%clk 0:01:37.3]}
30... Kf7 {[%clk 0:01:24.3]} 31. Bxa6 {[%clk 0:01:37.9]} 31... Kg6 {[%clk
0:01:23.4]} 32. c3 {[%clk 0:01:36.3]} 32... Kg5 {[%clk 0:01:23.8]} 33. b4 {[%clk
0:01:32.9]} 33... Bb6 {[%clk 0:01:24.6]} 34. a4 {[%clk 0:01:33.3]} 34... Kh4
{[%clk 0:01:25.4]} 35. a5 {[%clk 0:01:34.4]} 35... Be3 {[%clk 0:01:26.3]} 36.
Bd3 {[%clk 0:01:21.9]} 36... Kg3 {[%clk 0:01:25.4]} 37. Ke2 {[%clk 0:01:22.5]}
37... Kxg2 {[%clk 0:01:25.5]} 38. h4 {[%clk 0:01:23.5]} 1-0

[Event "*** Titled Tuesday Blitz"]
[Site "Chess.com"]
[Date "2019.02.05"]
[Round "4"]
[White "Alopekos"]
[Black "r31415"]
[Result "1-0"]
[WhiteElo "2493"]
[BlackElo "2294"]
[TimeControl "180+2"]
[EndTime "13:48:08 PST"]
[Termination "Alopekos won by resignation"]

1. e4 {[%clk 0:03:01.9]} 1... e5 {[%clk 0:03:00.8]} 2. Nf3 {[%clk 0:03:01.4]}
2... Nc6 {[%clk 0:03:02.3]} 3. Bb5 {[%clk 0:03:02.3]} 3... Nf6 {[%clk
0:03:03.9]} 4. Nc3 {[%clk 0:03:02.4]} 4... Bc5 {[%clk 0:03:04.1]} 5. O-O {[%clk
0:02:59.9]} 5... d6 {[%clk 0:03:04.2]} 6. d4 {[%clk 0:02:57.7]} 6... exd4 {[%clk
0:03:03]} 7. Nxd4 {[%clk 0:02:59.6]} 7... Bd7 {[%clk 0:03:03.8]} 8. Nb3 {[%clk
0:02:54]} 8... Bb6 {[%clk 0:03:03.9]} 9. Bg5 {[%clk 0:02:42.1]} 9... h6 {[%clk
0:03:01]} 10. Bxf6 {[%clk 0:02:41.3]} 10... Qxf6 {[%clk 0:03:01.6]} 11. Nd5
{[%clk 0:02:42.6]} 11... Qg5 {[%clk 0:02:54]} 12. a4 {[%clk 0:02:38.1]} 12...
Bh3 {[%clk 0:02:21]} 13. Qf3 {[%clk 0:02:37.5]} 13... Bg4 {[%clk 0:02:22]} 14.
Qc3 {[%clk 0:02:38.3]} 14... O-O {[%clk 0:01:55.5]} 15. a5 {[%clk 0:02:26.4]}
15... Ne5 {[%clk 0:01:36.1]} 16. Kh1 {[%clk 0:01:47]} 16... Qh5 {[%clk
0:00:54.2]} 17. f3 {[%clk 0:01:37.2]} 17... c6 {[%clk 0:00:40.8]} 18. Ne7+
{[%clk 0:01:18.1]} 18... Kh8 {[%clk 0:00:37.7]} 19. Be2 {[%clk 0:01:19.4]} 19...
Bc7 {[%clk 0:00:13.3]} 20. fxg4 {[%clk 0:01:18.4]} 20... Qg5 {[%clk 0:00:13.6]}
21. Nf5 {[%clk 0:01:06.1]} 21... d5 {[%clk 0:00:13.3]} 22. exd5 {[%clk
0:01:03.2]} 22... Qh4 {[%clk 0:00:08.8]} 23. Nxh4 {[%clk 0:01:03.6]} 1-0

[Event "*** Titled Tuesday Blitz"]
[Site "Chess.com"]
[Date "2019.02.05"]
[Round "4"]
[White "StanislavNovikov"]
[Black "nocnypako"]
[Result "1-0"]
[WhiteElo "2670"]
[BlackElo "2340"]
[TimeControl "180+2"]
[EndTime "13:48:09 PST"]
[Termination "StanislavNovikov won by resignation"]

1. e4 {[%clk 0:03:01.9]} 1... e6 {[%clk 0:02:59.3]} 2. Qe2 {[%clk 0:03:02.2]}
2... c5 {[%clk 0:02:56.9]} 3. Nf3 {[%clk 0:03:02.6]} 3... Nc6 {[%clk 0:02:57.8]}
4. g3 {[%clk 0:03:03]} 4... g6 {[%clk 0:02:59.2]} 5. Bg2 {[%clk 0:03:03.2]} 5...
Bg7 {[%clk 0:03:00.6]} 6. O-O {[%clk 0:02:57.3]} 6... d6 {[%clk 0:03:01.6]} 7.
c3 {[%clk 0:02:56.2]} 7... Nge7 {[%clk 0:03:02.4]} 8. Na3 {[%clk 0:02:55.6]}
8... O-O {[%clk 0:03:03.1]} 9. d4 {[%clk 0:02:55.7]} 9... cxd4 {[%clk
0:02:59.9]} 10. cxd4 {[%clk 0:02:57.6]} 10... Nxd4 {[%clk 0:03:00.9]} 11. Nxd4
{[%clk 0:02:58]} 11... Bxd4 {[%clk 0:03:02.6]} 12. Rd1 {[%clk 0:02:58.5]} 12...
Bg7 {[%clk 0:02:54.7]} 13. Nb5 {[%clk 0:02:46.8]} 13... d5 {[%clk 0:02:51.5]}
14. Bg5 {[%clk 0:02:22.6]} 14... a6 {[%clk 0:02:25.9]} 15. exd5 {[%clk
0:02:13.5]} 15... axb5 {[%clk 0:02:26.5]} 16. d6 {[%clk 0:02:13.9]} 16... f6
{[%clk 0:02:27.2]} 17. dxe7 {[%clk 0:02:12.7]} 17... Qxe7 {[%clk 0:02:29.1]} 18.
Be3 {[%clk 0:02:08.1]} 18... Qb4 {[%clk 0:01:45.9]} 19. Rac1 {[%clk 0:02:00.9]}
19... Re8 {[%clk 0:00:49.7]} 20. a3 {[%clk 0:01:59]} 20... Qb3 {[%clk
0:00:45.3]} 21. Rc7 {[%clk 0:01:31.6]} 21... f5 {[%clk 0:00:35.8]} 22. Bd4
{[%clk 0:01:19.7]} 22... Bxd4 {[%clk 0:00:12.5]} 23. Rxd4 {[%clk 0:01:20.1]}
23... e5 {[%clk 0:00:05.2]} 24. Bd5+ {[%clk 0:01:13.2]} 1-0

[Event "*** Titled Tuesday Blitz"]
[Site "Chess.com"]
[Date "2019.02.05"]
[Round "4"]
[White "SCIM"]
[Black "SerkanSoysal"]
[Result "1-0"]
[WhiteElo "2411"]
[BlackElo "2542"]
[TimeControl "180+2"]
[EndTime "13:48:10 PST"]
[Termination "SCIM won by resignation"]

1. d4 {[%clk 0:03:01.9]} 1... Nf6 {[%clk 0:02:59.6]} 2. c4 {[%clk 0:03:03.3]}
2... g6 {[%clk 0:03:00.9]} 3. Nc3 {[%clk 0:03:04.7]} 3... d5 {[%clk 0:03:02]} 4.
Bg5 {[%clk 0:03:04.1]} 4... Bg7 {[%clk 0:02:59.6]} 5. Bxf6 {[%clk 0:03:05.4]}
5... Bxf6 {[%clk 0:03:01.3]} 6. cxd5 {[%clk 0:03:06.4]} 6... c6 {[%clk
0:03:02.5]} 7. e4 {[%clk 0:03:03.5]} 7... Qb6 {[%clk 0:03:02.3]} 8. e5 {[%clk
0:02:50]} 8... Bg7 {[%clk 0:03:01.6]} 9. Qd2 {[%clk 0:02:46.3]} 9... O-O {[%clk
0:03:01.2]} 10. Nf3 {[%clk 0:02:44.6]} 10... Rd8 {[%clk 0:03:01.6]} 11. Be2
{[%clk 0:02:40.3]} 11... cxd5 {[%clk 0:03:01.7]} 12. O-O {[%clk 0:02:41.8]}
12... Nc6 {[%clk 0:03:01.5]} 13. h3 {[%clk 0:02:42.7]} 13... Bf5 {[%clk
0:02:58.1]} 14. Rac1 {[%clk 0:02:41.6]} 14... Rac8 {[%clk 0:02:39.3]} 15. Na4
{[%clk 0:02:35.6]} 15... Qc7 {[%clk 0:02:35.6]} 16. Nc5 {[%clk 0:02:34.3]} 16...
Be4 {[%clk 0:02:34]} 17. b4 {[%clk 0:02:30.8]} 17... Qb6 {[%clk 0:02:22]} 18. a3
{[%clk 0:02:30.1]} 18... Bxf3 {[%clk 0:02:15.3]} 19. Bxf3 {[%clk 0:02:30.2]}
19... a5 {[%clk 0:02:17.1]} 20. Rb1 {[%clk 0:02:04.3]} 20... axb4 {[%clk
0:02:17.6]} 21. axb4 {[%clk 0:02:04.3]} 21... Ra8 {[%clk 0:02:01.1]} 22. Rfc1
{[%clk 0:01:58.5]} 22... e6 {[%clk 0:02:00.2]} 23. h4 {[%clk 0:01:52.4]} 23...
Qa7 {[%clk 0:01:35.6]} 24. b5 {[%clk 0:01:46.8]} 24... Na5 {[%clk 0:01:25.9]}
25. b6 {[%clk 0:01:45.7]} 25... Qb8 {[%clk 0:01:27.6]} 26. h5 {[%clk 0:01:42.6]}
26... Nc4 {[%clk 0:01:24]} 27. Qf4 {[%clk 0:01:43]} 27... Ra2 {[%clk 0:01:16.5]}
28. Nxb7 {[%clk 0:01:38]} 28... Rf8 {[%clk 0:00:59.7]} 29. h6 {[%clk 0:01:34.8]}
29... Bh8 {[%clk 0:00:55.2]} 30. Nc5 {[%clk 0:01:35.3]} 30... Qd8 {[%clk
0:00:39.1]} 31. b7 {[%clk 0:01:34.7]} 31... Rb2 {[%clk 0:00:32.9]} 32. Rxb2
{[%clk 0:01:29.7]} 32... Nxb2 {[%clk 0:00:34.8]} 33. Rb1 {[%clk 0:01:30.6]} 1-0

[Event "*** Titled Tuesday Blitz"]
[Site "Chess.com"]
[Date "2019.02.05"]
[Round "4"]
[White "jcibarra"]
[Black "Feegus"]
[Result "1-0"]
[WhiteElo "2707"]
[BlackElo "2377"]
[TimeControl "180+2"]
[EndTime "13:48:11 PST"]
[Termination "jcibarra won on time"]

1. e4 {[%clk 0:03:01.9]} 1... e6 {[%clk 0:03:01]} 2. d4 {[%clk 0:03:02.3]} 2...
d5 {[%clk 0:03:02.4]} 3. Nd2 {[%clk 0:03:03.3]} 3... Nc6 {[%clk 0:03:03]} 4.
Ngf3 {[%clk 0:03:03.2]} 4... Nf6 {[%clk 0:03:03.7]} 5. e5 {[%clk 0:03:03.8]}
5... Nd7 {[%clk 0:03:05]} 6. c4 {[%clk 0:03:04.3]} 6... dxc4 {[%clk 0:02:56.7]}
7. Nxc4 {[%clk 0:03:03.3]} 7... Nb6 {[%clk 0:02:57.8]} 8. a3 {[%clk 0:03:03.1]}
8... Be7 {[%clk 0:02:38.9]} 9. Be3 {[%clk 0:03:01.7]} 9... Nd5 {[%clk
0:02:39.3]} 10. Bd3 {[%clk 0:02:58.5]} 10... a6 {[%clk 0:02:22.1]} 11. Qc2
{[%clk 0:02:57.3]} 11... Qd7 {[%clk 0:02:18.2]} 12. Rc1 {[%clk 0:02:48.2]} 12...
b5 {[%clk 0:01:44.3]} 13. Ncd2 {[%clk 0:02:46.3]} 13... Bb7 {[%clk 0:01:42.9]}
14. O-O {[%clk 0:02:41.5]} 14... g5 {[%clk 0:01:28.9]} 15. Ne4 {[%clk
0:02:37.5]} 15... g4 {[%clk 0:01:29.7]} 16. Nfd2 {[%clk 0:02:35.8]} 16... Rd8
{[%clk 0:01:22.6]} 17. Nb3 {[%clk 0:02:35.2]} 17... Nxe3 {[%clk 0:01:17.2]} 18.
fxe3 {[%clk 0:02:34.3]} 18... Qd5 {[%clk 0:00:55.1]} 19. Nec5 {[%clk 0:02:26.6]}
19... Bxc5 {[%clk 0:00:27]} 20. Nxc5 {[%clk 0:02:28.5]} 20... Nxd4 {[%clk
0:00:22.5]} 21. exd4 {[%clk 0:02:25.1]} 21... Qxd4+ {[%clk 0:00:24.4]} 22. Kh1
{[%clk 0:02:17.2]} 22... Bd5 {[%clk 0:00:09.2]} 23. Nxa6 {[%clk 0:02:03.5]}
23... g3 {[%clk 0:00:06.5]} 24. Nxc7+ {[%clk 0:01:59.5]} 24... Kf8 {[%clk
0:00:04.6]} 25. Nxd5 {[%clk 0:01:57.2]} 25... Rxd5 {[%clk 0:00:04.6]} 26. Rf3
{[%clk 0:01:32.9]} 26... gxh2 {[%clk 0:00:03.6]} 27. Rcf1 {[%clk 0:01:31.6]}
27... Rxe5 {[%clk 0:00:03]} 28. Rxf7+ {[%clk 0:01:31.2]} 1-0

[Event "*** Titled Tuesday Blitz"]
[Site "Chess.com"]
[Date "2019.02.05"]
[Round "4"]
[White "Gentlejimmy7"]
[Black "mishanick"]
[Result "0-1"]
[WhiteElo "2299"]
[BlackElo "3020"]
[TimeControl "180+2"]
[EndTime "13:48:19 PST"]
[Termination "mishanick won by resignation"]

1. d4 {[%clk 0:03:01.9]} 1... Nf6 {[%clk 0:03:00.4]} 2. Nf3 {[%clk 0:02:58.6]}
2... g6 {[%clk 0:03:00.8]} 3. g3 {[%clk 0:02:58.3]} 3... Bg7 {[%clk 0:03:01.1]}
4. Bg2 {[%clk 0:02:48.5]} 4... d5 {[%clk 0:02:59.2]} 5. O-O {[%clk 0:02:49.3]}
5... c6 {[%clk 0:03:00.8]} 6. c4 {[%clk 0:02:40.8]} 6... dxc4 {[%clk 0:03:02.7]}
7. Ne5 {[%clk 0:02:30.2]} 7... Ng4 {[%clk 0:03:00.4]} 8. Nxc4 {[%clk 0:02:22.8]}
8... Qxd4 {[%clk 0:02:58.9]} 9. Qc2 {[%clk 0:02:20.3]} 9... O-O {[%clk
0:02:52.8]} 10. h3 {[%clk 0:02:19.1]} 10... Ne5 {[%clk 0:02:50.5]} 11. Nba3
{[%clk 0:02:13.8]} 11... Nxc4 {[%clk 0:02:47.9]} 12. Nxc4 {[%clk 0:02:14.2]}
12... Be6 {[%clk 0:02:48.9]} 13. Na5 {[%clk 0:02:11.3]} 13... Qb6 {[%clk
0:02:45.3]} 14. Nb3 {[%clk 0:02:11.2]} 14... Nd7 {[%clk 0:02:44]} 15. Be3 {[%clk
0:02:11.2]} 15... Qb4 {[%clk 0:02:44.4]} 16. Nc5 {[%clk 0:02:09.2]} 16... Nxc5
{[%clk 0:02:29.8]} 17. Bxc5 {[%clk 0:02:10.2]} 17... Qc4 {[%clk 0:02:30.6]} 18.
Qxc4 {[%clk 0:01:55.9]} 18... Bxc4 {[%clk 0:02:32.5]} 19. Rfe1 {[%clk
0:01:56.4]} 19... Rfd8 {[%clk 0:02:31]} 20. Bxe7 {[%clk 0:01:36.9]} 20... Rd2
{[%clk 0:02:31.3]} 21. Bg5 {[%clk 0:01:37.6]} 21... Rxb2 {[%clk 0:02:30.9]} 22.
Rab1 {[%clk 0:01:38.9]} 22... Bxa2 {[%clk 0:02:23.6]} 23. Rxb2 {[%clk
0:01:35.7]} 23... Bxb2 {[%clk 0:02:25.5]} 24. Rd1 {[%clk 0:01:36.5]} 24... a5
{[%clk 0:02:24.7]} 25. Rd7 {[%clk 0:01:37]} 25... Bd5 {[%clk 0:02:20]} 26. Rxb7
{[%clk 0:01:36.4]} 26... Bg7 {[%clk 0:02:12]} 27. e4 {[%clk 0:01:18.4]} 27...
Be6 {[%clk 0:02:12.7]} 28. e5 {[%clk 0:01:16.2]} 28... Bd5 {[%clk 0:02:13.1]}
29. f4 {[%clk 0:01:14.1]} 29... a4 {[%clk 0:02:13.4]} 30. Bxd5 {[%clk
0:01:13.4]} 30... cxd5 {[%clk 0:02:15.3]} 31. Rb2 {[%clk 0:01:14.8]} 31... a3
{[%clk 0:02:15.4]} 32. Ra2 {[%clk 0:01:15.8]} 32... Bf8 {[%clk 0:02:16.9]} 33.
f5 {[%clk 0:00:47.3]} 33... gxf5 {[%clk 0:02:16.6]} 34. Bc1 {[%clk 0:00:47.2]}
34... Bc5+ {[%clk 0:02:15.6]} 35. Kf1 {[%clk 0:00:47.7]} 35... Kf8 {[%clk
0:02:15.6]} 36. Ke2 {[%clk 0:00:46.7]} 36... Ke7 {[%clk 0:02:16.4]} 37. Kd3
{[%clk 0:00:38.7]} 37... Ke6 {[%clk 0:02:17.4]} 38. Bf4 {[%clk 0:00:39.2]} 38...
Rb8 {[%clk 0:02:17.1]} 39. Kc2 {[%clk 0:00:37.6]} 39... d4 {[%clk 0:02:14.2]}
40. Ra1 {[%clk 0:00:38.2]} 40... Rb2+ {[%clk 0:02:14.6]} 41. Kd3 {[%clk
0:00:39.6]} 41... Kd5 {[%clk 0:02:15]} 42. Bc1 {[%clk 0:00:38.6]} 42... Rb3+
{[%clk 0:02:16]} 0-1

[Event "*** Titled Tuesday Blitz"]
[Site "Chess.com"]
[Date "2019.02.05"]
[Round "4"]
[White "justantan"]
[Black "DanielMieles1985"]
[Result "1-0"]
[WhiteElo "2707"]
[BlackElo "2622"]
[TimeControl "180+2"]
[EndTime "13:48:20 PST"]
[Termination "justantan won by resignation"]

1. e4 {[%clk 0:03:01.9]} 1... e5 {[%clk 0:03:00.8]} 2. Nf3 {[%clk 0:03:02.8]}
2... Nc6 {[%clk 0:03:02]} 3. Bb5 {[%clk 0:03:04.4]} 3... a6 {[%clk 0:03:02.4]}
4. Ba4 {[%clk 0:03:05.1]} 4... d6 {[%clk 0:03:03.6]} 5. c3 {[%clk 0:03:03.1]}
5... Bd7 {[%clk 0:03:04.2]} 6. d4 {[%clk 0:03:02.6]} 6... g6 {[%clk 0:03:05.2]}
7. O-O {[%clk 0:03:03.2]} 7... Bg7 {[%clk 0:03:06]} 8. Re1 {[%clk 0:03:03.7]}
8... Nf6 {[%clk 0:03:04.9]} 9. h3 {[%clk 0:03:04.3]} 9... O-O {[%clk 0:03:04.8]}
10. Nbd2 {[%clk 0:02:52.5]} 10... exd4 {[%clk 0:03:05.6]} 11. cxd4 {[%clk
0:02:52.8]} 11... Nb4 {[%clk 0:03:06.7]} 12. Bxd7 {[%clk 0:02:51.7]} 12... Qxd7
{[%clk 0:03:07.3]} 13. Nf1 {[%clk 0:02:51.7]} 13... c5 {[%clk 0:02:59.6]} 14. a3
{[%clk 0:02:37.1]} 14... Nc6 {[%clk 0:02:59.1]} 15. d5 {[%clk 0:02:37.3]} 15...
Ne7 {[%clk 0:02:55.4]} 16. Ng3 {[%clk 0:02:37]} 16... b5 {[%clk 0:02:54.1]} 17.
Bf4 {[%clk 0:02:37]} 17... Rfe8 {[%clk 0:02:52.1]} 18. Qd2 {[%clk 0:02:36.8]}
18... a5 {[%clk 0:02:43.5]} 19. Rad1 {[%clk 0:02:37.6]} 19... b4 {[%clk
0:02:43.8]} 20. axb4 {[%clk 0:02:35.2]} 20... axb4 {[%clk 0:02:45.3]} 21. Bh6
{[%clk 0:02:33.2]} 21... Ra2 {[%clk 0:02:43.4]} 22. Bxg7 {[%clk 0:02:31.6]}
22... Kxg7 {[%clk 0:02:44]} 23. h4 {[%clk 0:02:07.2]} 23... h5 {[%clk
0:02:21.3]} 24. Qg5 {[%clk 0:02:01]} 24... Qg4 {[%clk 0:02:15.7]} 25. e5 {[%clk
0:02:00.2]} 25... dxe5 {[%clk 0:02:07.3]} 26. d6 {[%clk 0:01:59.7]} 26... Ned5
{[%clk 0:01:48.7]} 27. Nxe5 {[%clk 0:01:55.7]} 27... Qe6 {[%clk 0:00:47.4]} 28.
d7 {[%clk 0:01:56.4]} 28... Nxd7 {[%clk 0:00:34.8]} 29. Nxd7 {[%clk 0:01:57.1]}
29... Qxd7 {[%clk 0:00:31.6]} 30. Rxe8 {[%clk 0:01:58]} 30... Qxe8 {[%clk
0:00:32.6]} 31. Rxd5 {[%clk 0:01:52.7]} 31... Kh7 {[%clk 0:00:25.9]} 32. Re5
{[%clk 0:01:50.3]} 32... Qd7 {[%clk 0:00:22.6]} 33. Ne4 {[%clk 0:01:43.9]} 33...
Ra1+ {[%clk 0:00:19.6]} 34. Kh2 {[%clk 0:01:43.7]} 34... Qc7 {[%clk 0:00:21.5]}
35. Nf6+ {[%clk 0:01:42.3]} 35... Kg7 {[%clk 0:00:21.6]} 36. Ne8+ {[%clk
0:01:43.1]} 1-0

[Event "*** Titled Tuesday Blitz"]
[Site "Chess.com"]
[Date "2019.02.05"]
[Round "4"]
[White "jeetjain"]
[Black "arctic_t00"]
[Result "1-0"]
[WhiteElo "2352"]
[BlackElo "2359"]
[TimeControl "180+2"]
[EndTime "13:48:30 PST"]
[Termination "jeetjain won on time"]

1. e4 {[%clk 0:02:34.8]} 1... e6 {[%clk 0:02:59.6]} 2. d4 {[%clk 0:02:35.7]}
2... d5 {[%clk 0:03:01]} 3. Nc3 {[%clk 0:02:36.9]} 3... Nf6 {[%clk 0:03:01.7]}
4. e5 {[%clk 0:02:38.1]} 4... Nfd7 {[%clk 0:03:02.7]} 5. Nce2 {[%clk 0:02:39.2]}
5... c5 {[%clk 0:03:03.3]} 6. f4 {[%clk 0:02:40.7]} 6... Nc6 {[%clk 0:03:04.6]}
7. Nf3 {[%clk 0:02:42.2]} 7... f6 {[%clk 0:03:00.2]} 8. c3 {[%clk 0:02:43.2]}
8... Be7 {[%clk 0:02:57.3]} 9. a3 {[%clk 0:02:44.3]} 9... b5 {[%clk 0:02:48.9]}
10. g3 {[%clk 0:02:40.3]} 10... O-O {[%clk 0:02:41.5]} 11. Bg2 {[%clk
0:02:34.4]} 11... Qb6 {[%clk 0:02:38.7]} 12. Be3 {[%clk 0:02:30.4]} 12... fxe5
{[%clk 0:02:37]} 13. fxe5 {[%clk 0:02:30.9]} 13... cxd4 {[%clk 0:02:34.7]} 14.
cxd4 {[%clk 0:02:29.7]} 14... Ndxe5 {[%clk 0:02:17.9]} 15. O-O {[%clk
0:02:05.5]} 15... Nc4 {[%clk 0:02:08.4]} 16. Bf2 {[%clk 0:01:57.9]} 16... Nxb2
{[%clk 0:02:02.9]} 17. Qc2 {[%clk 0:01:59.2]} 17... Nc4 {[%clk 0:02:03.8]} 18.
Nf4 {[%clk 0:02:00]} 18... Nxa3 {[%clk 0:01:25.7]} 19. Rxa3 {[%clk 0:02:00.5]}
19... Bxa3 {[%clk 0:01:26.4]} 20. Ng5 {[%clk 0:02:01.8]} 20... Rf5 {[%clk
0:01:03.4]} 21. Nfxe6 {[%clk 0:01:55.1]} 21... Ne7 {[%clk 0:00:55]} 22. g4
{[%clk 0:01:49]} 22... Bxe6 {[%clk 0:00:49.7]} 23. gxf5 {[%clk 0:01:44.8]} 23...
Bxf5 {[%clk 0:00:47.8]} 24. Qa2 {[%clk 0:01:39.8]} 24... Qd6 {[%clk 0:00:10.4]}
25. Bg3 {[%clk 0:01:40.8]} 25... Qg6 {[%clk 0:00:02.7]} 26. Bxd5+ {[%clk
0:01:40.8]} 26... Kh8 {[%clk 0:00:03.4]} 27. Bxa8 {[%clk 0:01:39.5]} 27... Qxg5
{[%clk 0:00:04]} 28. Qxa3 {[%clk 0:01:38.7]} 28... h5 {[%clk 0:00:04.2]} 29. Kh1
{[%clk 0:01:28.9]} 29... h4 {[%clk 0:00:03.7]} 30. Bf4 {[%clk 0:01:30.2]} 1-0